Cogmind - Beta 14 @@@ ROGUE MODE // 2024.08.27 @ 22:44:01 // Winter2019/RPGLIKE Player: Bulbasornado Result: Destroyed by D-53 Grenadier with Mini Grenade Launcher Performance ------------- Evolutions (0) 0 Regions Visited (0) 0 Robots Destroyed (1) 5 Value Destroyed (6) 6 Prototype IDs (0) 0 Alien Tech Used (0) 0 Bonus (0) 0 TOTAL SCORE: 11 Bonus ------- None Cogmind --------- Core Integrity 0/600 Matter 300/300 Energy 60/250 System Corruption 0% Temperature Warm (174) Movement Treading (160) Location -11/Scrapyard Parts ------- > --- POWER (1) -------- Ion Engine > --- PROPULSION (1) --- Light Treads > --- UTILITY (1) ------ (None) > --- WEAPON (3) ------- EM Pulse Gun EM Pulse Gun Medium Laser > --- INVENTORY (0) ---- (None) Peak State ------------ > --- POWER ------------ Ion Engine > --- PROPULSION ------- Light Treads > --- UTILITY ---------- (None) > --- WEAPON ----------- EM Pulse Gun EM Pulse Gun Medium Laser > --- INVENTORY -------- (None) [Rating: 5] Favorites ----------- Power Ion Engine Engine Ion Engine Propulsion Light Treads Treads Light Treads Utility None Weapon EM Pulse Gun Energy Gun EM Pulse Gun Build | -11 ------- Run | Yrd Slots Evolved 2 | 2 Power . | . Propulsion . | . Utility . | . Weapon 2 | 2 Parts Attached 5 | 5 Power 1 | 1 Engine 1 | 1 Core . | . Reactor . | . Propulsion 1 | 1 Treads 1 | 1 Leg . | . Wheel . | . Hover . | . Flight . | . Utility . | . Device . | . Storage . | . Processor . | . Hackware . | . Protection . | . Artifact . | . Weapon 3 | 3 Energy Gun 3 | 3 Energy Cannon . | . Ballistic Gun . | . Ballistic Cannon . | . Launcher . | . Special Weapon . | . Impact Weapon . | . Slashing Weapon . | . Piercing Weapon . | . Special Melee Weapon . | . Unidentified Prototypes . | . Parts Lost . | . Power . | . Propulsion . | . Utility . | . Weapon . | . Highest Loss Streak . | . To Critical Strikes . | . Average Slot Usage (%) . | . Peak Build Rating 5 | 5 Average Rating 4 | 4 On Entrance . | . Naked Turns . | . Heaviest Build 11 | 11 Greatest Support 20 | 20 Greatest Overweight (x) 3 | 3 Average Overweight (x) 2 | 2 Largest Inventory Capacity . | . Average Capacity . | . Most Carried . | . Average Carried . | . Final Capacity . | . Final Carried . | . Class Distribution -------------------- None Dominant Class ---------------- None Resources | -11 ----------- Run | Yrd Matter Collected 250 | 250 Remotely . | . Salvage Created 60 | 60 Parts . | . Haulers Intercepted . | . Recyclers Shooed . | . Parts Field Recycled . | . Retrieved Matter . | . Parts Self-Destructed . | . Prevented . | . Kills | -11 ------- Run | Yrd Combat Hostiles Destroyed . | . Classes Destroyed 1 | 1 Recycler 1 | 1 Best Kill Streak 1 | 1 Combat Bots Only . | . Max Kills in Single Turn 1 | 1 Gunslinging . | . Exploded . | . Melee . | . Uniques/NPCs Destroyed . | . Combat | -11 -------- Run | Yrd Hostile Shots Fired 21 | 21 Missed 2 | 2 Damage Taken 730 | 730 Core 608 | 608 Absorbed by Shields . | . Redirected to Core 424 | 424 Core Remaining (%) . | . Volleys Fired 11 | 11 Largest 3 | 3 Hottest 130 | 130 Shots Fired 33 | 33 Gun 33 | 33 Cannon . | . Launcher . | . Special . | . Kinetic . | . Thermal 11 | 11 Explosive . | . Electromagnetic 22 | 22 Robot Hit Streak 8 | 8 Robot Miss Streak 2 | 2 Penetration Max . | . Secondary Targets . | . Shots Hit Robots 27 | 27 Core Hits 8 | 8 Critical Kills . | . Critical Parts Destroyed . | . Critical Strikes 1 | 1 Burn 1 | 1 Melee Attacks . | . Impact . | . Slashing . | . Piercing . | . Sneak Attacks . | . Combat Hostiles . | . Follow-up Attacks . | . Damage Inflicted 325 | 325 Guns 325 | 325 Cannons . | . Explosions . | . Melee . | . Ramming . | . Kinetic . | . Thermal 141 | 141 Explosive . | . Electromagnetic 184 | 184 Impact . | . Slashing . | . Piercing . | . Highest Corruption . | . Average Corruption . | . Corruption Purged . | . Corruption Blocked . | . Overload Shots . | . Overflow Damage . | . Projectiles . | . Explosions . | . Melee . | . Knockbacks . | . Impact . | . Kinetic . | . Secondary . | . Self-Inflicted Damage . | . Shots . | . Rammed . | . Targets Rammed . | . Kicked . | . Crushed . | . Highest Temperature 174 | 174 Average Temperature 92 | 92 Received Heat Transfer . | . Siege Activations . | . Robots Corrupted . | . Combat Hostiles . | . Parts Fried . | . Impact Corruptions . | . Robots Melted . | . Combat Hostiles . | . Parts Melted . | . Heat Transferred 481 | 481 Parts Sabotaged . | . Parts Stolen . | . Parts Stripped . | . Power Chain Reactions . | . Alert | -11 ------- Run | Yrd Peak Influence 5 | 5 Initial . | . Average 1 | 1 Maximum Alert Level . | . Low Security (%) 100 | 100 Level 1 . | . Level 2 . | . Level 3 . | . Level 4 . | . Level 5 . | . High Security . | . Max Security . | . Squads Dispatched . | . Investigation . | . Extermination . | . Reinforcement . | . Assault . | . Garrison . | . Intercept . | . Searches Triggered . | . Construction Impeded . | . Haulers Reinforced . | . Active Scanning Responses . | . Cargo Convoy Interrupts . | . Stealth | -11 --------- Run | Yrd Distress Signals . | . Communications Jammed . | . Distress Signals . | . Times Spotted 2 | 2 Peak Tracking Total 2 | 2 Tactical Retreats . | . Traps | -11 ------- Run | Yrd Traps Triggered . | . Indirectly . | . Trap Hack Attempts . | . Triggered . | . Disarmed . | . Reprogrammed . | . Reused . | . Traps Extracted . | . Installed . | . Triggered . | . Machines | -11 ---------- Run | Yrd Machines Disabled . | . Max in Single Turn . | . Machines Repaired . | . Machines Dismantled . | . Machines Sabotaged . | . Overloaded Fab Kills . | . Hacking | -11 --------- Run | Yrd Machines Accessed . | . Terminals . | . Fabricators . | . Repair Stations . | . Recycling Units . | . Scanalyzers . | . Garrison Access . | . Total Hacks . | . Successful . | . Failed . | . Catastrophic . | . Database Lockouts . | . Manual . | . Terminals . | . Fabricators . | . Repair Stations . | . Recycling Units . | . Scanalyzers . | . Garrison Access . | . Terminal Hacks . | . Fabricator Hacks . | . Repair Station Hacks . | . Recycling Unit Hacks . | . Scanalyzer . | . Garrison Access Hacks . | . Unauthorized Hacks . | . Terminals . | . Fabricators . | . Repair Stations . | . Recycling Units . | . Scanalyzers . | . Garrison Access . | . Data Cores Recovered . | . Used . | . Hacking Detections . | . Full Trace Events . | . Feedback Events . | . Feedback Blocked . | . Robot Schematics Acquired . | . Robots Built . | . Authchips . | . Time . | . Total Robot Build Rating . | . Part Schematics Acquired . | . Parts Built . | . Authchips . | . Time . | . Total Part Build Rating . | . Parts Repaired . | . Time . | . Parts Recycled . | . Recycled Matter . | . Retrieved Matter . | . Retrieved Components . | . Parts Scanalyzed . | . Part Schematics Acquired . | . Parts Damaged . | . Bothacking | -11 ------------ Run | Yrd Used RIF Installer . | . Robots Hacked . | . Non-combat . | . Combat . | . Robot Hacks Applied . | . Relay Couplers Released . | . Fabnet Peak Effective % . | . Robots Rewired . | . Allies Hacked . | . Hacks Repelled . | . Allies | -11 -------- Run | Yrd Total Allies . | . Largest Group . | . Highest-Rated Group . | . Highest-Rated Ally . | . Total Orders . | . Ally Attacks . | . Total Damage . | . Kills . | . Allies Corrupted . | . Allies Melted . | . Intel | -11 ------- Run | Yrd Robot Analysis Total . | . Derelict Logs Recovered . | . Drone Launches . | . Drone Recoveries . | . Exploration | -11 ------------- Run | Yrd Turns Passed 1071 | 1071 Spaces Moved 50 | 50 Core 46 | 46 Treads 4 | 4 Legs . | . Wheels . | . Hover . | . Flight . | . Fastest Speed 50 | 50 Average Speed 163 | 163 Slowest Speed 200 | 200 Overloaded Moves . | . Propulsion Burnouts . | . Robots Hopped . | . Cave-ins Triggered . | . Exploration Rate (%) 11 | 11 Regions Visited . Branch Regions . Pre-discovered Areas . | . Known Exits Taken . | . Unknown Exits Taken . | . Scrap Searched . | . Spaces Dug . | . Terrain Destroyed . | . Melee . | . Projectile . | . AOE . | . Terrain Rammed . | . Walls Destroyed . | . Machines Disabled . | . Actions | -11 --------- Run | Yrd Total 1014 | 1014 Wait 948 | 948 Move 50 | 50 Hop . | . Pick Up . | . Fast Attach 5 | 5 Attach . | . Detach . | . Swap . | . Drop . | . Fire 11 | 11 Melee . | . Ram . | . Kick . | . Crush . | . Escape Stasis . | . Rewire . | . Trap . | . Miscellaneous . | . Route ------- -11/Scrapyard (discovered 1 exit: [*Mat]) History --------- Turn | Location | Event 1 | -11/Scrapyard | Upgraded with Weapon slot (x2) 24 | -11/Scrapyard | Discovered new exit (range 15) 1040 | -11/Scrapyard | Assembled infested the area 1055 | -11/Scrapyard | Core integrity fell below 50% 1067 | -11/Scrapyard | Core integrity fell below 20% 1072 | -11/Scrapyard | Destroyed by D-53 Grenadier with Mini Grenade Launcher Last Messages --------------- 01000_ T-07 Excavator is excavating. 01031_ K-01 Serf collects debris. 01040_ ALERT: Infestation in the scrapyard, dispatching Demolisher response squad. 01041_ C-30 ARC bursts open, deploying its payload. 01041_ D-53 Grenadier unfolds itself. 01041_ T-07 Excavator destroyed. 01042_ The unstable cave ceiling collapses. 01049_ D-53 Grenadier suffers critical hit (Burn). 01056_ D-53 Grenadier heat spikes uncontrollably. 01056_ D-53 Grenadier overheating. 01058_ The unstable cave ceiling collapses. 01058_ D-53 Grenadier overheating. 01058_ Destroyed Shock Absorption System. 01059_ D-53 Grenadier overheating. 01060_ D-53 Grenadier destroyed. 01063_ K-01 Serf collects debris. 01066_ The unstable cave ceiling collapses. 01067_ K-01 Serf collects debris. 01070_ T-07 Excavator destroyed. Map ----- +----------------------------------------------------+ | ?????????????????????????????????????????????????? | | ?????????????????????????????????????????????????? | | ?????????????????????????????????????????????????? | | ?????????????????????????????????????????????????? | | ?????????????????????????????????????????????????? | | ?????????????????????????????????????????????????? | | ?????????????????????????????????????????????????? | | ?????????????????????????????????????????????????? | | ?????????????????????????????????????????????????? | | ?????????????????????????????????????????????????? | | ??????????????????????? ?????????????????????? | | ????????????????????? ???????????????????? | | ????????????????## ????????????????? | | ??????????????? #???????????????? | | ?????????????? ! #???????????????? | | ??????????????a% #???????????????? | | ???????????????* #???????????????? | | ?????????????##? #???????????????? | | ?????????????# # #???????????????? | | ?????????????# #? #???? ??????????? | | ??????????#### #### #?? ??????????? | | #######???# % # = # k#?????????? | | #???# # ????????????? | | #???# # = #####???????????? | | ##### % ]% ????????? | | =*== % d @ ????????? | | = ## ##???????????????? | | ##### < # #???????????????? | | = #???# # ##???????????????? | | #???########## ###????????????????? | | #######????????????# ###?????????????????? | | ???????????????????# #???????????????????? | | ???????????????????# #???????????????????? | | ???????????????????# #???????????????????? | | ???????????????????# #???????????????????? | | ???????????????????###########???????????????????? | | ?????????????????????????????????????????????????? | | ?????????????????????????????????????????????????? | | ?????????????????????????????????????????????????? | | ?????????????????????????????????????????????????? | | ?????????????????????????????????????????????????? | | ?????????????????????????????????????????????????? | | ?????????????????????????????????????????????????? | | ?????????????????????????????????????????????????? | | ?????????????????????????????????????????????????? | | ?????????????????????????????????????????????????? | | ?????????????????????????????????????????????????? | | ?????????????????????????????????????????????????? | | ?????????????????????????????????????????????????? | | ?????????????????????????????????????????????????? | +----------------------------------------------------+ Best States ------------- Heat Dissipation 37 Energy Generation 10 Energy Capacity 250 Matter Stores 300 Matter Capacity 300 Sight Range 16 Terrain Scan Density 10 Evasion (%) 50 Recoil Reduction 1 Item Schematics ----------------- None Robot Schematics ------------------ None Fabricated ------------ Nothing Alien Tech Used ----------------- None Achievements -------------- None Challenges ------------ None RPGLIKE | -11 --------- Run | Yrd Levels Raised . | . XP Earned 3000 | 3000 XP Spent 2920 | 2920 Upgrades 7 | 7 Weapon Slot 2 | 2 Heat Dissipation 2 | 2 Ranged Accuracy 3 | 3 Protomatter Created . | . Protomatter Decayed . | . Game ------ Seed CatalystFactoryFlightbrick Manual? 0 Play Time 00:03:56 Cumulative 202.4 hours Start 2024.08.27 @ 22:42:01 End 2024.08.27 @ 22:44:01 Sessions 0 Manual Loads 0 Difficulty Rogue Special Mode Winter2019/RPGLIKE Game No. 71 Rogue 64 Adventurer 7 Explorer 0 Win Type - Total 5 Types 3/0/1/1/0/0/0/0/0 Lore% 58 Gallery% 70 Achievement% 59 Wizard Run 0 Options --------- Layout 0 ASCII 0 Keyboard 1 Movement Vi Keybinds 0 Fullscreen 2 Font 18/Smallcaps Map View 76x50 Zoom Use 0% Tactical HUD 1 Map Filters NONE Filters NONE Steam 1 RUN: 06c2f947-54de-4a18-9921-6e56327fc702